[Event "AUT Bundesliga 2021-22"]
[Site "Graz"]
[Date "2022.04.21"]
[Round "9.34"]
[White "Kuthan, Andreas"]
[Black "Martinovic, Sasa"]
[Result "0-1"]
[ECO "C01"]
[WhiteElo "2250"]
[BlackElo "2554"]
[Annotator "TA"]
[PlyCount "46"]
[EventDate "2021.01.17"]
[EventType "team-tourn"]
[EventCountry "AUT"]
[SourceTitle "playchess.com"]
[Source "ChessBase"]
[SourceQuality "1"]
[TimeControl "40/5400+30:1800+30"]

{[%evp 14,46,20,20,20,17,27,24,24,14,12,8,16,6,17,-38,-31,-29,-22,-89,-83,-93,-89,-95,-95,-91,-88,-97,-91,-97,-90,-384,-368,-356,-331]} 1. e4 {[%emt 0:00:02]} e6 {[%emt 0:00:04]} 2. d4 {[%emt 0:00:07]} d5 {[%emt 0:00:05]} 3. exd5 {[%emt 0:00:13]} exd5 {[%emt 0:00:05]} 4. Nf3 {[%emt 0:00:02]} Nf6 {[%emt 0:00:09]} 5. Bd3 {[%emt 0:00:07]} c5 {[%emt 0:00:07][%cal Bc7c5,Bc5c4][%mdl 32]} 6. O-O {[%emt 0:00:38]} c4 {[%emt 0:00:07]} 7. Re1+ {[%emt 0:00:05]} Be7 {[%emt 0:00:07]} 8. Bf1 {[%emt 0:00:05]} O-O {[%emt 0:00:09] C01: French: Exchange Variation.} 9. b3 {[%emt 0:00:56]} cxb3 {[%emt 0:00:10]} 10. axb3 {[%emt 0:00:05]} Nc6 {[%emt 0:00:05] White has an edge.} 11. Ne5 {[%emt 0:01:49]} Nxe5 {[%emt 0:00:24]} 12. dxe5 {[%emt 0:02:17]} Ne4 {[%emt 0:00:27] [#] aiming for ...Bc5.} 13. Be3 {[%emt 0:02:05] [#]} Bf5 $146 {[%emt 0:06:07]} ({Predecessor:} 13... Be6 14. f3 Nc5 15. Nd2 Qc7 16. Bd4 a5 17. f4 Bf5 18. g4 Ne6 19. gxf5 Nxd4 {0-1 (36) Kleibel,U (2142)-Muckle,J (2395) Neustadt an der Weinstrasse 2020}) 14. Nd2 {[%emt 0:29:35]} (14. Bd3 $11) 14... Nc3 $15 {[%emt 0:18:16]} 15. Qf3 {[%emt 0:02:50]} d4 {[%emt 0:10:40]} 16. Qxf5 {[%emt 0:27:16]} (16. Bf4 $1 $11) 16... dxe3 $17 {[%emt 0:00:03]} 17. Nc4 {[%emt 0:03:21] [#]} g6 $1 {[%emt 0:00:06]} 18. Qf3 {[%emt 0:01:07]} exf2+ {[%emt 0:00:05]} 19. Qxf2 {[%emt 0:00:08]} b5 $36 {[%emt 0:15:14][%mdl 2048] Keeping White busy.} 20. Nd6 {[%emt 0:03:03]} Bxd6 {[%emt 0:00:07]} 21. exd6 {[%emt 0:00:01]} Qxd6 {[%emt 0:00:08]} 22. Rxa7 $2 {[%emt 0:00:24][%mdl 8192]} (22. Qf3 $17 Qd4+ 23. Qf2 Qxf2+ 24. Kxf2) 22... Nd1 $19 {[%emt 0:00:56]} 23. Rxa8 {[%emt 0:04:18]} Rxa8 {[%emt 0:02:27] Weighted Error Value: White=0.54/Black=0.00 (flawless)} (23... Nxf2 $2 {loses.} 24. Rxf8+ Kxf8 25. Kxf2 $19) 0-1

[Event "AUT Bundesliga 2021-22"]
[Site "Graz"]
[Date "2022.04.21"]
[Round "9.35"]
[White "Saric, Ante"]
[Black "Boric, Elena"]
[Result "1-0"]
[ECO "A04"]
[WhiteElo "2514"]
[BlackElo "2191"]
[Annotator "TA"]
[PlyCount "93"]
[EventDate "2021.01.17"]
[EventType "team-tourn"]
[EventCountry "AUT"]
[SourceTitle "playchess.com"]
[Source "ChessBase"]
[SourceQuality "1"]
[TimeControl "40/5400+30:1800+30"]

{[%evp 16,93,48,35,49,35,45,40,33,37,70,71,85,85,86,75,77,69,103,87,117,87,94,82,83,55,55,43,133,127,108,121,133,117,112,129,104,131,136,107,150,129,322,317,333,290,263,232,420,418,442,335,288,211,541,543,549,459,500,483,533,521,3111,2892,2507,2286,5754,5339,6145,6141,4910,2353,12822,11623,29991,29992,29992,29990,29990,2327]} 1. Nf3 {[%emt 0:00:06]} d6 {[%emt 0:00:28]} 2. d4 {[%emt 0:00:06]} f5 {[%emt 0:00:22]} 3. g3 {[%emt 0:01:08]} Nf6 {[%emt 0:00:21]} 4. Bg2 {[%emt 0:00:07]} g6 {[%emt 0:00:22]} 5. O-O {[%emt 0:00:11]} Bg7 {[%emt 0:00:10]} 6. b3 {[%emt 0:00:06]} O-O {[%emt 0:00:21]} 7. Bb2 {[%emt 0:00:04]} Ne4 {[%emt 0:03:53]} 8. Nbd2 {[%emt 0:00:06]} c6 {[%emt 0:02:58]} 9. c4 {[%emt 0:05:56]} e6 {[%emt 0:07:08] A87: Dutch Defence: Leningrad System: 5 Nf3.} 10. Nxe4 {[%emt 0:06:39]} fxe4 {[%emt 0:00:07]} 11. Ne1 {[%emt 0:00:15]} d5 $1 {[%emt 0:01:05] White is slightly better.} 12. f3 {[%emt 0:00:22]} exf3 {[%emt 0:01:16]} 13. Nxf3 {[%emt 0:02:16] [#]} Nd7 $146 {[%emt 0:03:45]} ({Predecessor:} 13... dxc4 14. bxc4 c5 15. e3 Nc6 16. Qd2 Na5 17. Rac1 Qc7 18. d5 Bxb2 19. Qxb2 exd5 20. cxd5 {½-½ (86) Tsakiris,H (2162)-Papasimakopoulos,V (1848) Achaia 2013}) 14. Qc2 {[%emt 0:08:28]} a5 {[%emt 0:05:47]} 15. e4 {[%emt 0:06:04][%cal Be2e4,Be4e5][%mdl 32]} Nf6 {[%emt 0:02:39]} 16. Ba3 {[%emt 0:15:23]} Re8 {[%emt 0:15:46]} 17. e5 {[%emt 0:00:56]} (17. Ne5 {keeps more tension.} a4 18. bxa4 dxe4 19. Rad1) 17... Ng4 {[%emt 0:02:25]} 18. Rae1 {[%emt 0:10:32] Against Ne3} b5 {[%emt 0:08:23]} 19. h3 {[%emt 0:08:21]} Nh6 {[%emt 0:00:09]} 20. cxb5 {[%emt 0:03:27] &Bianco is more active.} cxb5 {[%emt 0:00:13]} 21. Bc5 {[%emt 0:00:14]} Nf5 {[%emt 0:02:28]} (21... b4 $14) 22. Qf2 $1 $16 {[%emt 0:07:42]} b4 {[%emt 0:01:16]} 23. g4 {[%emt 0:00:13]} Nh6 {[%emt 0:00:25]} 24. Qe3 $36 {[%emt 0:00:13][%mdl 2048] Keeping Black busy.} Nf7 {[%emt 0:04:24]} 25. g5 {[%emt 0:00:58]} Ba6 {[%emt 0:08:07]} 26. Rf2 {[%emt 0:00:10]} Rc8 {[%emt 0:00:43]} 27. h4 {[%emt 0:04:19]} Qd7 {[%emt 0:06:00]} 28. Rc1 {[%emt 0:04:57]} Nd8 $2 {[%emt 0:05:35] [#] Black cannot hold the game after this.} (28... Bb5 $16 29. Nh2 h5) 29. Nh2 $1 $18 {[%emt 0:03:00]} Nb7 {[%emt 0:00:30] [#]} 30. Ng4 $1 {[%emt 0:01:02]} Nxc5 {[%emt 0:00:41]} 31. dxc5 {[%emt 0:00:11][%cal Bd4c5,Bc5c6][%mdl 32]} d4 $2 {[%emt 0:04:13]} (31... Qc6 {was necessary.} 32. Nf6+ Kh8) 32. Qe4 {[%emt 0:00:13]} d3 {[%emt 0:00:39]} 33. c6 {[%emt 0:00:34]} Qa7 {[%emt 0:01:12]} 34. Nf6+ {[%emt 0:01:42]} Bxf6 $2 {[%emt 0:00:34]} (34... Kh8) 35. exf6 {[%emt 0:00:04]} Kf7 {[%emt 0:01:02]} 36. Qe5 {[%emt 0:00:48]} Qc7 {[%emt 0:05:42]} 37. Rc5 {[%emt 0:00:13]} Red8 {[%emt 0:01:58] Threatens to win with ...Qxe5.} 38. Rd2 {[%emt 0:00:46]} Bb7 {[%emt 0:04:07]} 39. Qxc7+ {[%emt 0:01:24]} Rxc7 {[%emt 0:00:03] [#]} 40. Rxd3 $3 {[%emt 0:00:00][%cal Oc6b7][%mdl 512]} Rxd3 {[%emt 0:00:00] [#]} (40... Rb8 41. Rb5) 41. cxb7 $1 {[%emt 0:01:16][%mdl 4096] Endgame KRR-KRB} Rd1+ {[%emt 0:03:17]} (41... Rxb7 42. Bxb7) 42. Kh2 {[%emt 0:00:10]} Rxb7 {[%emt 0:01:08]} 43. Bxb7 {[%emt 0:00:05] Rc7+ is the strong threat.} Rd2+ {[%emt 0:00:07]} 44. Kg3 {[%emt 0:00:04] White wants to mate with Rc7+.} Rxa2 {[%emt 0:00:07]} 45. Rc7+ {[%emt 0:00:04] White mates.} Kg8 {[%emt 0:00:58]} 46. Bc8 {[%emt 0:00:05]} Re2 {[%emt 0:00:45]} 47. Re7 {[%emt 0:00:11] Weighted Error Value: White=0.14 (very precise) /Black=0.61} (47. Bd7 $142 Re3+ 48. Kf4 Rc3 49. Bxe6+ Kh8 50. Ra7 h6 51. Ra8+ Rc8 52. Rxc8+ Kh7 53. f7 hxg5+ 54. hxg5 a4 55. f8=Q axb3 56. Qh8#) 1-0

[Event "AUT Bundesliga 2021-22"]
[Site "Graz"]
[Date "2022.04.21"]
[Round "9.36"]
[White "Gschiel, Alexander"]
[Black "Rogic, Davor"]
[Result "0-1"]
[ECO "D11"]
[WhiteElo "2109"]
[BlackElo "2446"]
[Annotator "TA"]
[PlyCount "78"]
[EventDate "2021.01.17"]
[EventType "team-tourn"]
[EventCountry "AUT"]
[SourceTitle "playchess.com"]
[Source "ChessBase"]
[SourceQuality "1"]
[TimeControl "40/5400+30:1800+30"]

{[%evp 19,78,0,3,0,8,0,0,0,33,0,26,9,13,16,16,19,68,65,137,55,59,24,19,0,0,0,36,38,34,40,44,33,60,30,24,25,31,7,0,-37,-35,-56,-24,-47,-42,-206,-201,-188,-134,-318,0,-182,-166,-188,-184,-248,-252,-302,-295,-1083,-804]} 1. d4 {[%emt 0:00:12]} d5 {[%emt 0:00:27]} 2. c4 {[%emt 0:00:19]} c6 {[%emt 0:00:33]} 3. Nf3 {[%emt 0:00:47]} Nf6 {[%emt 0:00:20]} 4. g3 {[%emt 0:00:36]} Bf5 {[%emt 0:01:27]} 5. Bg2 {[%emt 0:00:46]} e6 {[%emt 0:01:04]} 6. O-O {[%emt 0:00:39]} h6 {[%emt 0:02:34]} 7. Nc3 {[%emt 0:03:07]} Nbd7 {[%emt 0:01:54]} 8. Nd2 {[%emt 0:05:48]} Be7 {[%emt 0:03:24]} 9. e4 {[%emt 0:06:32]} dxe4 {[%emt 0:01:09]} 10. Ndxe4 {[%emt 0:00:15]} O-O {[%emt 0:03:00]} 11. Be3 {[%emt 0:06:28] D11: Slav Defence: 3 Nf3 sidelines and 3...Nf6 4 e3 Bg4.} Qa5 {[%emt 0:11:57] [#]} 12. Qe2 $146 {[%emt 0:07:32]} ({Predecessor:} 12. Qb3 Qb4 13. Rfd1 Nxe4 14. Nxe4 Rfd8 15. h3 a5 16. Rac1 Nf6 17. Nc3 a4 18. Qxb4 Bxb4 {0-1 (86) Lahaye,R (2361)-Bok,B (2594) Belgium 2017}) 12... Rfe8 {[%emt 0:06:39]} 13. a3 {[%emt 0:09:48] The position is equal.} Bg4 {[%emt 0:23:29]} 14. f3 {[%emt 0:05:02]} Bh5 {[%emt 0:01:43]} 15. b4 {[%emt 0:10:07]} Qa6 {[%emt 0:03:03]} 16. g4 {[%emt 0:04:56]} Bg6 {[%emt 0:01:03]} 17. f4 {[%emt 0:02:37] Against e5} Rad8 {[%emt 0:05:39]} (17... Nxe4 $11 18. Bxe4 (18. Nxe4 Rad8 $11) 18... Bxe4 19. Nxe4 f5) 18. Nd2 $1 $14 {[%emt 0:03:30]} Qb6 {[%emt 0:06:59]} (18... h5 $14) 19. c5 {[%emt 0:09:20]} (19. g5 $16) 19... Qc7 {[%emt 0:00:34]} 20. Nc4 {[%emt 0:01:50]} (20. g5 $5 {[%cal Rg5f6]} Nd5 21. Nxd5 exd5 22. Nf3 $11) 20... Nd5 {[%emt 0:01:26]} 21. Nxd5 {[%emt 0:02:39]} exd5 {[%emt 0:01:02]} 22. f5 {[%emt 0:02:06]} Bh7 {[%emt 0:04:50] [#]} (22... Bxf5 $5 {[%cal Rd5c4]} 23. Nd6 (23. Rxf5 dxc4 24. Qxc4 Nf6 $11) 23... Bg6 24. Nxe8 Rxe8 $14) 23. Bf4 $1 {[%emt 0:01:12]} Qc8 {[%emt 0:00:58]} (23... Bf6 $2 24. Qf2 (24. Bxc7 Rxe2 25. Bxd8 Bxd4+ 26. Ne3 Bxa1 $17) 24... Qc8 25. Nd6 $18) 24. Ne5 {[%emt 0:01:29]} Bf6 {[%emt 0:03:18]} 25. Qb2 {[%emt 0:01:23]} Re7 {[%emt 0:01:42]} 26. Rae1 {[%emt 0:02:12]} Bh4 {[%emt 0:01:21]} 27. Rb1 {[%emt 0:04:52]} Rde8 {[%emt 0:02:10]} 28. b5 {[%emt 0:01:03]} (28. Nf3 $5 {[%cal Rf3h4]} Bf6 29. Rbe1 $14) 28... Bf6 {[%emt 0:04:07][%cal Rd7e5]} 29. Nf3 {[%emt 0:01:40] [#]} Nxc5 $1 {[%emt 0:00:31] aiming for ...Nd3.} 30. Qc2 {[%emt 0:01:08] Against Nd3} (30. bxc6 bxc6) 30... Nd7 {[%emt 0:01:52]} 31. bxc6 {[%emt 0:01:55]} bxc6 {[%emt 0:00:08]} 32. Rfc1 $2 {[%emt 0:00:52]} (32. Rbc1 $15) 32... Re4 $1 $19 {[%emt 0:00:15]} 33. Qd2 {[%emt 0:00:44]} Re2 {[%emt 0:02:29]} (33... g5 $19 34. fxg6 Bxg6) 34. Qa5 $2 {[%emt 0:01:22]} (34. Qd3 $17) 34... R2e4 {[%emt 0:01:26]} (34... h5 $142 35. Ne5 Nxe5 36. dxe5 Bxf5 $1 {[%mdl 512]} 37. gxf5 Qxf5 $1) 35. Qd2 {[%emt 0:00:45] [#]} g5 $1 $36 {[%emt 0:00:46][%mdl 2048] Black is in control.} 36. fxg6 {[%emt 0:01:52]} Bxg6 {[%emt 0:00:08]} 37. Rb2 {[%emt 0:00:31]} (37. Rb3 $142) 37... Nb6 {[%emt 0:00:21]} 38. g5 {[%emt 0:00:29]} hxg5 {[%emt 0:00:23]} 39. Nxg5 $2 {[%emt 0:00:08]} (39. Bxg5 Bg7 40. Qf2) 39... Rxd4 {[%emt 0:00:51] Weighted Error Value: White=0.50/Black=0.23 (precise)} 0-1

[Event "AUT Bundesliga 2021-22"]
[Site "Graz"]
[Date "2022.04.22"]
[Round "10.1"]
[White "Rozentalis, Eduardas"]
[Black "Horvath, Dominik"]
[Result "*"]
[ECO "C54"]
[WhiteElo "2542"]
[BlackElo "2483"]
[Annotator "TA"]
[PlyCount "27"]
[EventDate "2021.11.04"]
[EventType "team-tourn"]
[EventCountry "AUT"]
[SourceTitle "playchess.com"]
[Source "ChessBase"]
[SourceQuality "1"]
[TimeControl "40/5400+30:1800+30"]

{[%evp 12,14,16,8,12]} 1. e4 {[%emt 0:00:05]} e5 {[%emt 0:00:03]} 2. Nf3 {[%emt 0:00:20]} Nc6 {[%emt 0:00:04]} 3. Bc4 {[%emt 0:00:11]} Bc5 {[%emt 0:00:05]} 4. c3 {[%emt 0:00:25]} Nf6 {[%emt 0:00:04]} 5. d3 {[%emt 0:00:02]} O-O {[%emt 0:00:40]} 6. O-O {[%emt 0:00:43]} d6 {[%emt 0:00:07]} 7. Nbd2 {[%emt 0:01:46]} a5 {[%emt 0:00:46] [#] Not much happened in this game. C54: Giuoco Piano: 4 c3 Nf6, main lines with 5 d4 and 5 d3.} {Predecessor:} 8. h3 $146 Ba7 9. Re1 Be6 10. Bb5 Ne7 11. d4 Ng6 12. Nf1 c6 13. Bd3 a4 14. Ng3 {½-½ (72) Alekseenko,K (2702)-Carlsen,M (2856) Warsaw 2021} *

[Event "AUT Bundesliga 2021-22"]
[Site "Graz"]
[Date "2022.04.22"]
[Round "10.2"]
[White "Rubil, Marko"]
[Black "Atlas, Valery"]
[Result "*"]
[ECO "B83"]
[WhiteElo "2293"]
[BlackElo "2423"]
[Annotator "TA"]
[PlyCount "34"]
[EventDate "2021.11.04"]
[EventType "team-tourn"]
[EventCountry "AUT"]
[SourceTitle "playchess.com"]
[Source "ChessBase"]
[SourceQuality "1"]
[TimeControl "40/5400+30:1800+30"]

{[%evp 11,12,22,34]} 1. e4 {[%emt 0:00:03]} c5 {[%emt 0:00:05]} 2. Nf3 {[%emt 0:00:04]} e6 {[%emt 0:00:05]} 3. d4 {[%emt 0:00:09]} cxd4 {[%emt 0:00:04]} 4. Nxd4 {[%emt 0:00:06]} Nf6 {[%emt 0:00:07]} 5. Nc3 {[%emt 0:00:08]} d6 {[%emt 0:00:07]} 6. Be2 {[%emt 0:03:10]} Nc6 {[%emt 0:00:50] [#]} {Predecessor:} 7. Be3 $146 {B83: Sicilian Scheveningen: 6 Be2, lines without ...a6.} Bd7 8. Qd2 a6 9. O-O-O b5 10. a3 b4 11. axb4 Nxb4 12. Kb1 e5 13. Nf5 d5 14. Bg5 Be6 15. f4 Qa5 16. Bxf6 gxf6 17. fxe5 fxe5 {½-½ (25) Dubov,D (2702)-Artemiev,V (2711) Moscow 2020} *

[Event "AUT Bundesliga 2021-22"]
[Site "Graz"]
[Date "2022.04.22"]
[Round "10.3"]
[White "Baenziger, Fabian"]
[Black "Kuthan, Andreas"]
[Result "*"]
[ECO "E67"]
[WhiteElo "2418"]
[BlackElo "2207"]
[Annotator "TA"]
[PlyCount "40"]
[EventDate "2021.11.04"]
[EventType "team-tourn"]
[EventCountry "AUT"]
[SourceTitle "playchess.com"]
[Source "ChessBase"]
[SourceQuality "1"]
[TimeControl "40/5400+30:1800+30"]

{[%evp 13,14,39,25]} 1. d4 {[%emt 0:00:05]} Nf6 {[%emt 0:00:05]} 2. Nf3 {[%emt 0:01:27]} g6 {[%emt 0:00:17]} 3. c4 {[%emt 0:01:31]} Bg7 {[%emt 0:00:07]} 4. g3 {[%emt 0:00:05]} O-O {[%emt 0:00:09]} 5. Bg2 {[%emt 0:00:04]} d6 {[%emt 0:00:28]} 6. Nc3 {[%emt 0:00:35]} Nbd7 {[%emt 0:00:39]} 7. O-O {[%emt 0:00:21]} e5 {[%emt 0:00:13] [#]} {Predecessor:} 8. e4 $146 {E68: King's Indian: Fianchetto: 6...Nbd7 7 0-0 e5 8 e4.} exd4 9. Nxd4 Re8 10. h3 a6 11. Re1 Rb8 12. a4 a5 13. Be3 c6 14. Qc2 Nc5 15. b3 Nfd7 16. Rab1 Na6 17. f4 Ndc5 18. Qd2 Nb4 19. Kh2 h5 20. Re2 Qf6 {1-0 (38) Carlsen,M (2865)-Mamedyarov,S (2767) chess24.com INT 2022} *

[Event "AUT Bundesliga 2021-22"]
[Site "Graz"]
[Date "2022.04.22"]
[Round "10.4"]
[White "Boric, Elena"]
[Black "Novkovic, Milan"]
[Result "*"]
[ECO "A45"]
[WhiteElo "2191"]
[BlackElo "2360"]
[Annotator "TA"]
[PlyCount "37"]
[EventDate "2021.11.04"]
[EventType "team-tourn"]
[EventCountry "AUT"]
[SourceTitle "playchess.com"]
[Source "ChessBase"]
[SourceQuality "1"]
[TimeControl "40/5400+30:1800+30"]

{[%evp 8,8,9]} 1. d4 {[%emt 0:00:16]} Nf6 {[%emt 0:00:31]} 2. Bf4 {[%emt 0:00:43]} e6 {[%emt 0:02:15]} 3. e3 {[%emt 0:00:51]} c5 {[%emt 0:00:13]} 4. c3 {[%emt 0:00:41]} b6 {[%emt 0:00:26] [#] Not much happened in this game.} {Predecessor:} 5. Nf3 $146 Be7 6. h3 {A47: 1 d4 Nf6 2 Nf3 b6: Torre, London and Colle Systems.} O-O 7. Nbd2 cxd4 8. exd4 Bb7 9. Bd3 d6 10. O-O Nbd7 11. Qe2 a6 12. a4 Re8 13. Bh2 h6 14. Rfe1 Bf8 15. Nc4 Qc7 16. Ne3 Nd5 17. Nxd5 Bxd5 18. Bxa6 Bxf3 19. gxf3 {1-0 (34) Carlsen,M (2837)-Akobian,V (2647) Riadh 2017} *

[Event "AUT Bundesliga 2021-22"]
[Site "Graz"]
[Date "2022.04.22"]
[Round "10.5"]
[White "Mundorf, Johannes"]
[Black "Gschiel, Alexander"]
[Result "*"]
[ECO "A06"]
[WhiteElo "2257"]
[BlackElo "2186"]
[Annotator "TA"]
[PlyCount "30"]
[EventDate "2021.11.04"]
[EventType "team-tourn"]
[EventCountry "AUT"]
[SourceTitle "playchess.com"]
[Source "ChessBase"]
[SourceQuality "1"]
[TimeControl "40/5400+30:1800+30"]

{[%evp 11,12,25,39]} 1. Nf3 {[%emt 0:00:18]} d5 {[%emt 0:00:20]} 2. g3 {[%emt 0:00:08]} Nf6 {[%emt 0:00:16]} 3. Bg2 {[%emt 0:00:07]} e6 {[%emt 0:00:20]} 4. O-O {[%emt 0:00:28]} Be7 {[%emt 0:00:27]} 5. c4 {[%emt 0:00:18]} O-O {[%emt 0:00:42]} 6. d4 {[%emt 0:00:17]} dxc4 {[%emt 0:00:58] [#]} {Predecessor:} 7. Qc2 $146 {E05: Open Catalan: 5 Nf3 Be7.} b5 8. a4 Bb7 9. axb5 a6 10. Nc3 axb5 11. Rxa8 Bxa8 12. Nxb5 Bd5 13. Bg5 Nc6 14. Bxf6 gxf6 15. e4 Nb4 {½-½ (62) Andreikin,D (2729)-Nepomniachtchi,I (2773) Chess.com INT 2022} *

[Event "AUT Bundesliga 2021-22"]
[Site "Graz"]
[Date "2022.04.22"]
[Round "10.6"]
[White "Kosc, Renata"]
[Black "Atlas, Dmitry"]
[Result "*"]
[ECO "C17"]
[WhiteElo "1974"]
[BlackElo "2250"]
[Annotator "TA"]
[PlyCount "31"]
[EventDate "2021.11.04"]
[EventType "team-tourn"]
[EventCountry "AUT"]
[SourceTitle "playchess.com"]
[Source "ChessBase"]
[SourceQuality "1"]
[TimeControl "40/5400+30:1800+30"]

{[%evp 9,9,-3]} 1. e4 {[%emt 0:00:06]} e6 {[%emt 0:00:21]} 2. d4 {[%emt 0:00:09]} d5 {[%emt 0:00:11]} 3. Nc3 {[%emt 0:00:13]} Bb4 {[%emt 0:00:08]} 4. e5 {[%emt 0:00:21]} c5 {[%emt 0:00:33]} 5. Bd2 {[%emt 0:00:25] [#] An uneventful encounter.} {Predecessor:} a6 $146 6. Nce2 {C17: French: 3 Nc3 Bb4 4 e5 c5 sidelines.} Bxd2+ 7. Qxd2 cxd4 8. Nxd4 Nc6 9. f4 Nxd4 10. Qxd4 Ne7 11. Bd3 Bd7 12. Nf3 Bb5 13. O-O-O Nc6 14. Qc5 Qe7 15. Qxe7+ Kxe7 16. Kb1 {½-½ (16) Nakamura,H (2736)-Andreikin,D (2724) Chess.com INT 2022} *

[Event "AUT Bundesliga 2021-22"]
[Site "Graz"]
[Date "2022.04.22"]
[Round "10.7"]
[White "Ragger, Markus"]
[Black "Bosiocic, Marin"]
[Result "*"]
[ECO "B30"]
[WhiteElo "2656"]
[BlackElo "2522"]
[Annotator "TA"]
[PlyCount "40"]
[EventDate "2021.11.04"]
[EventType "team-tourn"]
[EventCountry "AUT"]
[SourceTitle "playchess.com"]
[Source "ChessBase"]
[SourceQuality "1"]
[TimeControl "40/5400+30:1800+30"]

{[%evp 16,26,26,25,22,19,26,27,27,18,14,1,11]} 1. e4 {[%emt 0:00:02]} c5 {[%emt 0:00:06]} 2. Nf3 {[%emt 0:00:04]} Nc6 {[%emt 0:00:06]} 3. Bb5 {[%emt 0:00:04]} e6 {[%emt 0:00:09]} 4. O-O {[%emt 0:00:05]} Nge7 {[%emt 0:00:10]} 5. Re1 {[%emt 0:00:08]} a6 {[%emt 0:00:06]} 6. Bf1 {[%emt 0:00:08]} d5 {[%emt 0:00:06]} 7. exd5 {[%emt 0:00:26]} Nxd5 {[%emt 0:00:07]} 8. d4 {[%emt 0:00:05]} Nf6 {[%emt 0:00:09]} 9. Be3 {[%emt 0:00:16]} Be7 {[%emt 0:00:11] B30: Sicilian: 2...Nc6 3 Bb5, lines without ...g6.} 10. c4 {[%emt 0:00:24]} O-O {[%emt 0:00:14]} 11. Nc3 {[%emt 0:00:15]} cxd4 {[%emt 0:00:10]} 12. Nxd4 {[%emt 0:00:03]} Ne5 {[%emt 0:00:12] is now more promising than 12...Bd7.} 13. h3 {[%emt 0:00:16] Prevents Neg4.} Bd7 {[%emt 0:00:55] [#] Not much happened in this game.  Weighted Error Value: White=0.03 (flawless) /Black=0.02 (flawless)} {Predecessor:} 14. Qb3 $146 Qc7 15. Rac1 Rfc8 16. Na4 Bxa4 17. Qxa4 Rd8 18. Red1 Bc5 19. b4 Neg4 20. hxg4 Nxg4 {½-½ (40) Nepomniachtchi,I (2782)-Salem,A (2690) Warsaw 2021} *

[Event "AUT Bundesliga 2021-22"]
[Site "Graz"]
[Date "2022.04.22"]
[Round "10.8"]
[White "Brkic, Ante"]
[Black "Predojevic, Borki"]
[Result "*"]
[ECO "B12"]
[WhiteElo "2607"]
[BlackElo "2585"]
[Annotator "TA"]
[PlyCount "28"]
[EventDate "2021.11.04"]
[EventType "team-tourn"]
[EventCountry "AUT"]
[SourceTitle "playchess.com"]
[Source "ChessBase"]
[SourceQuality "1"]
[TimeControl "40/5400+30:1800+30"]

{[%evp 7,7,14]} 1. e4 {[%emt 0:00:03]} c6 {[%emt 0:00:07]} 2. d4 {[%emt 0:00:08]} d5 {[%emt 0:00:06]} 3. e5 {[%emt 0:00:03]} Bf5 {[%emt 0:00:07]} 4. c4 {[%emt 0:03:24] [#] Not much happened in this game.} {Predecessor:} e6 $146 5. Nc3 Ne7 6. h3 {B12: Caro-Kann: Advance Variation.} Nd7 7. Nf3 Bg6 8. b3 Nf5 9. Be2 Bb4 10. Bb2 O-O 11. O-O f6 12. a3 Ba5 13. cxd5 cxd5 14. exf6 Qxf6 {1-0 (53) Carlsen,M (2856)-Firouzja,A (2804) Warsaw 2021} *

[Event "AUT Bundesliga 2021-22"]
[Site "Graz"]
[Date "2022.04.22"]
[Round "10.9"]
[White "Handler, Lukas"]
[Black "Heberla, Bartlomiej"]
[Result "*"]
[ECO "A56"]
[WhiteElo "2436"]
[BlackElo "2568"]
[Annotator "TA"]
[PlyCount "31"]
[EventDate "2021.11.04"]
[EventType "team-tourn"]
[EventCountry "AUT"]
[SourceTitle "playchess.com"]
[Source "ChessBase"]
[SourceQuality "1"]
[TimeControl "40/5400+30:1800+30"]

{[%evp 13,18,37,51,47,44,40,52]} 1. d4 {[%emt 0:00:03]} Nf6 {[%emt 0:00:01]} 2. c4 {[%emt 0:00:07]} c5 {[%emt 0:00:05]} 3. d5 {[%emt 0:00:05]} g6 {[%emt 0:00:03]} 4. Nc3 {[%emt 0:00:09]} Bg7 {[%emt 0:00:05]} 5. e4 {[%emt 0:00:14]} d6 {[%emt 0:00:08]} 6. Be2 {[%emt 0:00:56]} O-O {[%emt 0:00:07]} 7. Be3 {[%emt 0:01:33]} e6 {[%emt 0:00:07] White is slightly better.} 8. Nf3 {[%emt 0:00:22] E73: King's Indian: Averbakh Variation without 6...c5.} Re8 {[%emt 0:00:05]} 9. Nd2 {[%emt 0:01:15]} Na6 {[%emt 0:00:06] [#]  Weighted Error Value: White=0.00 (flawless) /Black=0.00 (flawless)} {Predecessor:} 10. O-O $146 Nc7 11. a4 b6 12. Qc2 Ba6 13. Rae1 exd5 14. exd5 Bc8 15. h3 Na6 16. Bf4 {0-1 (39) Pashikian,A (2605)-Vishnu,P (2493) Moscow 2019} *

[Event "AUT Bundesliga 2021-22"]
[Site "Graz"]
[Date "2022.04.22"]
[Round "10.10"]
[White "Martinovic, Sasa"]
[Black "Kreisl, Robert"]
[Result "*"]
[ECO "D25"]
[WhiteElo "2554"]
[BlackElo "2398"]
[Annotator "TA"]
[PlyCount "31"]
[EventDate "2021.11.04"]
[EventType "team-tourn"]
[EventCountry "AUT"]
[SourceTitle "playchess.com"]
[Source "ChessBase"]
[SourceQuality "1"]
[TimeControl "40/5400+30:1800+30"]

{[%evp 9,16,27,37,35,18,17,30,17,33]} 1. d4 {[%emt 0:00:02]} d5 {[%emt 0:00:04]} 2. c4 {[%emt 0:00:05]} dxc4 {[%emt 0:00:03]} 3. Nf3 {[%emt 0:00:13]} Nf6 {[%emt 0:00:04]} 4. e3 {[%emt 0:00:04]} b5 {[%emt 0:00:17]} 5. a4 {[%emt 0:00:34]} b4 {[%emt 0:02:07]} 6. Bxc4 {[%emt 0:00:07] D25: Queen's Gambit Accepted: 4 e3: sidelines and 4...Bg4.} e6 {[%emt 0:00:04]} 7. O-O {[%emt 0:00:21]} Be7 {[%emt 0:00:27]} 8. Nbd2 {[%emt 0:01:26]} Bb7 {[%emt 0:00:06] [#] Not much happened in this game.  Weighted Error Value: White=0.01 (flawless) /Black=0.00 (flawless)} {Predecessor:} 9. a5 $146 a6 10. Qa4+ Nfd7 11. e4 O-O 12. Rd1 Nf6 13. Qc2 c5 14. e5 Nfd7 15. Ne4 cxd4 16. Rxd4 {1-0 (38) Postny,E (2620)-Nabaty,T (2649) Tiberias 2016} *